bitfinex/quotes_ETHUSD_20241003
["timestamp","ask_amount","ask_price","bid_price","bid_amount"]
[1727945486038,4.2728,2340.4,2339.9,4.27351]
[1727945486355,4.27235,2340.7,2340.0,0.427351]
[1727945486550,4.27287,2340.4,2339.8,4.27384]
[1727945486750,4.27287,2340.4,2339.8,4.27378]
[1727945487072,8.54654,2340.2,2339.8,0.854786]
[1727945487273,4.27327,2340.2,2339.8,4.27385]
[1727945487479,4.27289,2340.4,2339.9,4.27368]
[1727945487663,4.27316,2340.2,2339.7,4.27395]
[1727945487852,4.27316,2340.2,2339.8,0.427395]
[1727945488419,4.27284,2340.4,2339.8,4.701255]
[1727945488575,1.209288,2341.0,2340.2,4.27301]
[1727945488775,4.27175,2341.0,2339.9,3.4701255]
[1727945488934,4.27205,2340.8,2339.9,3.4701255]
[1727945489139,4.27242,2340.6,2340.1,4.27317]
[1727945489376,4.27205,2340.8,2340.1,4.27317]
[1727945489377,4.27216,2340.8,2340.1,4.27317]
[1727945489549,7.39,2341.5,2340.0,0.93180956]
[1727945489550,4.2718,2341.0,2340.4,4.27264]
[1727945489880,4.2718,2341.0,2340.5,4.27256]
[1727945490082,4.2718,2341.0,2340.4,4.27264]
[1727945490083,4.27189,2340.9,2340.4,4.27264]
[1727945490285,4.27221,2340.8,2340.4,0.854561]
[1727945490582,4.27257,2340.6,2340.1,4.27322]
[1727945490934,4.27318,2340.2,2339.7,4.27396]
[1727945491135,4.27318,2340.2,2339.8,0.427405]
[1727945491339,0.85449,2340.6,2339.3,2.4175]
[1727945491651,4.2727,2340.5,2339.9,4.27366]
[1727945491864,7.27238,2340.7,2340.0,4.27335]
[1727945491865,4.27242,2340.6,2340.0,4.27335]
[1727945492048,4.27259,2340.5,2340.0,4.27335]
[1727945492264,4.27259,2340.5,2339.9,8.5472]
[1727945492468,8.5453,2340.5,2339.9,8.5472]
[1727945492769,4.27259,2340.5,2339.6,7.27409]
[1727945492986,4.27279,2340.4,2339.8,4.27369]
[1727945493194,4.27242,2340.6,2340.0,4.2735]
[1727945493360,4.27288,2340.4,2339.8,4.27377]
[1727945493563,4.27288,2340.4,2339.7,1.26946651]
[1727945493564,4.27304,2340.3,2339.7,5.54350651]
[1727945493764,4.27318,2340.2,2339.5,4.27432]
[1727945493987,4.27318,2340.2,2339.4,0.78380751]
[1727945493988,4.27288,2340.4,2339.7,4.27404]
[1727945494688,4.27288,2340.4,2339.7,4.27395]
[1727945494898,4.27261,2340.5,2339.9,4.27359]
[1727945495066,4.27254,2340.6,2339.9,4.27365]
[1727945495067,4.27277,2340.4,2339.9,4.27365]
[1727945495784,4.699844,2340.5,2340.0,4.27347]
[1727945495958,4.27254,2340.6,2340.1,4.2733]
[1727945496159,4.27254,2340.6,2340.0,4.2734]
[1727945496417,4.27262,2340.5,2340.0,8.5468]
[1727945496574,4.27262,2340.5,2340.0,4.2734]
[1727945497086,4.27288,2340.4,2339.9,4.27355]
[1727945497295,4.27295,2340.3,2339.8,4.27374]
[1727945497508,4.27315,2340.2,2339.6,3.0]
[1727945497801,4.7428782,2340.4,2339.7,4.27388]
[1727945498003,4.27289,2340.4,2339.9,4.27363]
[1727945498311,4.27304,2340.3,2339.8,4.27385]
[1727945498604,4.27289,2340.4,2339.8,4.27385]
[1727945498605,4.27289,2340.4,2339.9,4.27366]
[1727945498808,4.27296,2340.3,2339.8,4.27385]
[1727945498974,4.27296,2340.3,2339.8,5.1712998]
[1727945499181,4.27296,2340.3,2339.8,9.4450898]
[1727945499366,4.27296,2340.3,2339.8,5.1712998]
[1727945499878,8.54603,2340.3,2339.8,5.1712998]
[1727945500269,4.27296,2340.3,2339.8,5.1712698]
[1727945500508,4.27296,2340.3,2339.8,9.4450298]
[1727945501215,3.0,2340.8,2339.7,0.427388]
[1727945501379,4.27169,2341.0,2339.8,4.27379]
[1727945501380,4.27289,2340.4,2339.8,4.27379]
[1727945501909,4.27334,2340.1,2339.5,4.27434]
[1727945502214,4.2728,2340.4,2339.7,4.27392]
[1727945502413,4.2728,2340.4,2339.8,4.2737]
[1727945502703,4.2728,2340.4,2339.9,4.27367]
[1727945502889,4.27296,2340.3,2339.8,4.2737]
[1727945503211,4.27306,2340.3,2339.7,4.27403]
[1727945503512,4.27306,2340.3,2339.8,4.27377]
[1727945503810,4.27315,2340.2,2339.7,4.27395]
[1727945504172,4.27315,2340.2,2339.7,8.54792]
[1727945504373,4.27315,2340.2,2339.7,4.27395]
[1727945504777,4.27348,2340.1,2339.6,4.2742]
[1727945504989,4.27359,2340.0,2339.5,4.27425]
[1727945505179,4.27371,2339.9,2339.3,4.27464]
[1727945505383,7.82324,2340.2,2339.2,4.2748]
[1727945505676,7.82324,2340.2,2339.3,4.27475]
[1727945505677,4.27406,2339.7,2339.3,4.27475]
[1727945505875,4.27406,2339.7,2339.2,4.27493]
[1727945506277,5.12887,2339.7,2339.2,4.27493]
[1727945506575,5.12887,2339.7,2339.1,4.2751]
[1727945506883,5.12887,2339.7,2339.2,4.27488]
[1727945507721,9.40302,2339.7,2339.2,4.27488]
[1727945507871,5.12887,2339.7,2339.2,4.27488]
[1727945508070,5.12887,2339.7,2339.0,4.3909543]
[1727945508277,5.12887,2339.7,2339.2,4.27487]
[1727945508278,0.85481,2339.7,2339.2,4.27487]
[1727945508575,4.27412,2339.7,2339.2,4.27487]
[1727945509276,4.27412,2339.7,2339.2,8.54974]
[1727945509475,4.27431,2339.6,2339.1,4.2751]
[1727945510110,4.27412,2339.7,2339.2,4.27482]
[1727945510416,4.27412,2339.7,2339.3,4.27478]
[1727945511116,4.27412,2339.7,2339.4,0.7959]
[1727945511487,8.54833,2339.7,2339.4,0.7959]
[1727945512175,8.54829,2339.7,2339.4,0.7959]
[1727945512378,4.27424,2339.6,2339.4,0.7959]
[1727945512579,5.128889,2339.7,2339.4,0.7959]
[1727945512903,4.27406,2339.7,2339.4,0.7959]
[1727945513276,4.27428,2339.6,2339.4,0.7959]
[1727945513475,4.27406,2339.7,2339.4,0.7959]
[1727945514487,8.54824,2339.7,2339.4,0.7959]
[1727945514706,4.27406,2339.7,2339.4,0.7959]
[1727945515094,4.27436,2339.6,2339.4,0.7959]
[1727945515638,4.27455,2339.5,2339.1,0.8224]
[1727945515803,4.27467,2339.4,2339.1,0.8224]
[1727945516198,5.09855,2340.1,2339.1,0.8224]
[1727945516394,4.27423,2339.6,2339.1,0.8224]
[1727945516634,4.2745,2339.5,2339.1,0.8224]
[1727945517552,4.27375,2339.9,2339.1,0.8224]
[1727945517553,4.27474,2339.4,2339.1,0.8224]
[1727945517849,4.27496,2339.3,2339.0,0.1157543]
[1727945518137,4.27481,2339.3,2339.0,0.1157543]
[1727945518476,4.27474,2339.4,2339.0,0.1157543]
[1727945518635,4.27452,2339.5,2339.0,4.3909743]
[1727945518847,4.27426,2339.6,2339.1,4.27503]
[1727945518995,4.27426,2339.6,2339.2,4.27495]
[1727945519196,0.8031,2339.9,2339.3,0.8074]
[1727945519197,3.8031,2339.9,2339.3,0.8074]
[1727945519423,4.27485,2339.3,2339.0,0.1157543]
[1727945519620,4.702465,2339.2,2339.0,0.1157543]
[1727945520008,4.27498,2339.2,2339.0,0.1157543]
[1727945520410,4.27485,2339.3,2339.0,0.1157543]
[1727945520842,4.27498,2339.2,2339.0,0.1157543]
[1727945521138,0.8034,2339.6,2339.0,0.1157543]
[1727945521139,8.54986,2339.3,2339.0,0.1157543]
[1727945521500,4.27492,2339.3,2339.0,0.1157543]
[1727945521698,4.27414,2339.7,2339.1,0.7889]
[1727945522050,4.27289,2340.4,2339.1,0.7889]
[1727945522051,0.7737,2340.3,2339.6,5.06305]
[1727945522250,0.7737,2340.3,2339.1,5.06394109]
[1727945522251,5.473949,2340.3,2339.5,4.27438]
[1727945522459,0.7737,2339.7,2339.1,5.06394]
[1727945522626,4.27485,2339.3,2339.0,0.1157543]
[1727945522827,4.27508,2339.2,2339.0,0.1157543]
[1727945523059,5.07358,2339.2,2339.0,0.1157543]
[1727945523370,0.7985,2339.2,2339.0,0.1157543]
[1727945523658,4.702305,2339.3,2339.0,0.1157543]
[1727945523824,4.27472,2339.4,2339.0,0.1157543]
[1727945524025,0.7848,2339.5,2339.0,0.1157543]
[1727945524026,5.05937,2339.5,2339.0,4.3909943]
[1727945524243,4.27497,2339.2,2339.0,0.1157543]
[1727945524561,4.27514,2339.1,2339.0,0.1157543]
[1727945524720,4.27489,2339.3,2339.0,0.1157543]
[1727945525051,0.505937,2339.4,2339.0,0.1157543]
[1727945525239,4.27483,2339.3,2339.0,0.1157543]
[1727945525829,4.27514,2339.1,2339.0,0.1157543]
[1727945526418,4.27501,2339.2,2339.0,0.1157543]
[1727945526419,4.27506,2339.2,2339.0,0.1157543]
[1727945526620,4.27414,2339.7,2339.1,0.8258]
[1727945526856,4.27406,2339.7,2339.1,5.10078]
[1727945527056,4.27426,2339.6,2339.2,4.79653343]
[1727945527229,4.27462,2339.4,2339.1,0.8258]
[1727945527558,4.27496,2339.2,2339.0,0.1157543]
[1727945529044,8.55005,2339.2,2339.0,0.1157543]
[1727945529353,4.27496,2339.2,2339.0,0.1157543]
[1727945529555,4.27514,2339.1,2339.0,0.1157543]
[1727945529981,5.05734,2339.1,2339.0,0.1157543]
[1727945530291,5.99057,2339.1,2339.0,0.1157543]
[1727945530793,14.05451109,2339.1,2339.0,0.1157543]
[1727945530999,8.99057,2339.1,2339.0,0.1157543]
[1727945532293,8.20837,2339.1,2339.0,0.1157543]
[1727945533305,4.27514,2339.1,2339.0,0.8935543]
[1727945533485,5.86914109,2339.7,2339.0,0.8935543]
[1727945533486,4.27491,2339.3,2339.0,0.8935543]
[1727945533727,4.27505,2339.2,2339.0,0.8935543]
[1727945533928,4.27504,2339.2,2339.0,0.8935543]
[1727945534733,4.2746,2339.4,2339.0,0.8935543]
[1727945534903,4.27508,2339.2,2339.0,0.8935543]
[1727945535728,4.27514,2339.1,2339.0,0.1157543]
[1727945536136,9.33908109,2339.1,2339.0,0.1157543]
[1727945536703,4.27514,2339.1,2339.0,0.1157543]
[1727945539199,7.27514,2339.1,2339.0,0.1157543]
[1727945540544,8.02874,2339.1,2339.0,0.1157543]
[1727945540831,9.3018728,2339.1,2339.0,0.1157543]
[1727945541225,8.5482728,2339.1,2339.0,0.1157543]
[1727945542245,8.5482728,2339.1,2338.1,4.27687]
[1727945542246,4.27679,2338.2,2338.1,0.83]
[1727945542471,4.27846,2337.3,2337.1,0.83]
[1727945542617,4.27862,2337.2,2337.1,0.83]
[1727945544348,4.27862,2337.2,2336.8,0.7913]
[1727945544349,4.279,2337.0,2336.8,0.7913]
[1727945544551,8.55815,2337.0,2336.8,0.7913]
[1727945544725,4.279,2337.0,2336.8,0.7913]
[1727945544936,4.27885,2337.1,2336.8,0.7913]
[1727945545867,4.27854,2337.3,2336.8,0.7913]
[1727945546038,4.2778,2337.7,2337.2,5.08833]
[1727945546383,0.855344,2338.2,2337.2,5.08833]
[1727945546384,5.132244,2338.2,2337.2,0.8098]
[1727945546673,9.409184,2338.2,2337.7,0.7842]
[1727945546886,5.04423,2338.6,2337.7,0.7842]
[1727945546887,0.7681,2338.6,2337.7,0.7842]
[1727945547095,0.7681,2338.6,2337.3,4.82829]
[1727945547096,4.27751,2337.9,2337.4,0.7842]
[1727945547377,4.27688,2338.2,2337.8,0.771]
[1727945547585,4.27645,2338.4,2337.8,0.771]
[1727945547782,4.85956411,2338.5,2337.9,8.55447]
[1727945547783,4.27636,2338.5,2337.9,8.55447]
[1727945548078,4.27634,2338.5,2337.9,4.27723]
[1727945548384,5.06483,2338.9,2337.9,0.932583]
[1727945548385,4.27604,2338.7,2337.9,0.932583]
[1727945548537,4.2757,2338.8,2338.3,4.27659]
[1727945548737,4.27562,2338.9,2338.3,0.509489]
[1727945548738,4.27565,2338.9,2338.3,0.509489]
[1727945549084,0.7846,2339.2,2338.1,4.27683]
[1727945549243,0.7846,2339.2,2337.6,7.27772]
[1727945549244,4.27599,2338.7,2338.2,0.7597]
[1727945549439,4.27599,2338.7,2337.7,5.005332]
[1727945549440,4.27661,2338.3,2337.7,5.005332]
[1727945549689,4.27682,2338.2,2337.8,0.7597]
[1727945550186,4.27706,2338.1,2337.8,0.7597]
[1727945550354,4.704572,2338.2,2337.8,0.7597]
[1727945550536,4.27662,2338.3,2337.8,5.03719]
[1727945550736,4.27663,2338.3,2337.8,5.03719]
[1727945551038,7.27583,2338.8,2337.9,0.7846]
[1727945551277,0.8275,2339.0,2338.4,5.06086]
[1727945551278,4.27561,2338.9,2338.4,5.06086]
[1727945551442,4.27561,2338.9,2338.4,5.06095]
[1727945551645,5.10071,2339.3,2338.5,4.27616]
[1727945551868,4.27515,2339.1,2338.6,4.27596]
[1727945552194,0.93387311,2339.2,2338.4,0.7846]
[1727945552195,4.27554,2338.9,2338.4,5.06101]
[1727945552386,4.27554,2338.9,2336.2,14.32652595]
[1727945552387,0.427554,2338.9,2338.2,0.7635]
[1727945552567,0.427554,2338.9,2336.7,4.8235743]
[1727945552568,4.27651,2338.4,2338.0,0.7635]
[1727945552890,4.27688,2338.2,2338.0,0.7635]
[1727945553088,4.27678,2338.3,2337.7,0.7535]
[1727945553089,4.27697,2338.1,2337.7,0.7535]
[1727945553295,4.2768,2338.2,2337.7,0.7535]
[1727945553461,4.27717,2338.0,2337.7,0.7535]
[1727945553645,4.27711,2338.1,2337.7,0.7535]
[1727945553957,4.27732,2338.0,2337.7,0.7535]
[1727945554138,4.27707,2338.1,2337.7,0.7535]
[1727945554346,5.21078211,2338.3,2337.9,4.27731]
[1727945554545,5.21078211,2338.3,2337.7,5.03116]
[1727945554546,0.93407211,2338.3,2337.8,4.27744]
[1727945554795,4.27686,2338.2,2337.8,4.27744]
[1727945554947,4.27686,2338.2,2337.7,5.03116]
[1727945555144,5.21076211,2338.3,2337.9,4.27733]
[1727945555362,5.06394109,2338.2,2337.7,0.7535]
[1727945555561,5.06394109,2338.2,2337.3,0.7805]
[1727945555562,4.27818,2337.5,2337.3,0.7805]
[1727945555765,0.427818,2337.4,2337.3,0.7805]
[1727945555995,4.27818,2337.5,2337.3,0.7805]
[1727945556196,4.2779,2337.6,2337.3,0.7805]
[1727945556347,3.7541,2338.1,2337.3,0.7805]
[1727945556348,4.27756,2337.8,2337.3,0.7805]
[1727945556550,4.27801,2337.6,2337.3,0.7805]
[1727945556851,4.27825,2337.4,2337.3,0.7805]
[1727945557096,4.27825,2337.4,2337.0,0.7721]
[1727945557392,4.27877,2337.2,2337.0,0.7721]
[1727945557542,4.27876,2337.2,2337.0,0.7721]
[1727945557742,4.27873,2337.2,2337.0,0.7721]
[1727945557945,4.27906,2337.0,2336.7,0.9216543]
[1727945558147,0.427906,2337.0,2336.7,0.9216543]
[1727945558390,4.27882,2337.1,2336.7,5.2010943]
[1727945558553,4.27876,2337.2,2336.7,5.2010943]
[1727945559083,4.27876,2337.2,2336.7,9.4805443]
[1727945559254,5.134473,2337.2,2336.8,4.27933]
[1727945559446,4.27837,2337.4,2336.7,5.2010943]
[1727945559447,4.27838,2337.4,2336.9,0.7678]
[1727945559748,9.34195109,2337.6,2336.9,0.7678]
[1727945559749,4.27854,2337.3,2336.9,0.7678]
[1727945559977,4.27863,2337.2,2336.9,0.7678]
[1727945560376,0.93419511,2337.5,2337.0,4.27886]
[1727945560377,3.93419511,2337.5,2337.0,4.27886]
[1727945560585,3.93419511,2337.5,2336.9,5.04679]
[1727945560586,4.27826,2337.4,2336.9,5.04679]
[1727945560752,4.27852,2337.3,2336.9,5.04679]
[1727945560945,4.27826,2337.4,2337.0,4.27896]
[1727945561573,4.27799,2337.6,2337.0,4.27896]
[1727945561774,4.27828,2337.4,2337.0,4.27896]
[1727945562946,4.27827,2337.4,2337.0,4.27896]
[1727945563151,4.27823,2337.5,2337.0,4.27896]
[1727945563385,3.0,2337.8,2337.2,0.8325]
[1727945563587,4.27858,2337.3,2336.9,0.8325]
[1727945563790,0.3,2337.7,2336.9,5.1116]
[1727945563959,4.27835,2337.4,2336.9,9.39066]
[1727945564287,4.27835,2337.4,2336.9,9.39064]
[1727945564491,0.3,2337.7,2336.9,0.8325]
[1727945564492,4.27846,2337.3,2336.9,0.8325]
[1727945564798,0.427846,2337.2,2336.9,0.8325]
[1727945565088,4.27846,2337.3,2336.9,0.8325]
[1727945565273,8.55707,2337.3,2336.9,0.8325]
[1727945565477,4.27864,2337.2,2336.9,0.8325]
[1727945565680,4.27873,2337.2,2336.9,0.8325]
[1727945565880,4.27846,2337.3,2336.9,0.8325]
[1727945566190,4.27863,2337.2,2336.9,0.8325]
[1727945566399,4.27834,2337.4,2336.9,5.11166]
[1727945566553,4.27855,2337.3,2336.9,5.11166]
[1727945567068,4.27818,2337.5,2337.0,4.27882]
[1727945567495,4.27834,2337.4,2337.0,4.27882]
[1727945567694,4.27834,2337.4,2336.7,0.1157543]
[1727945567695,4.27899,2337.0,2336.7,0.1157543]
[1727945567898,4.27877,2337.2,2336.7,0.1157543]
[1727945568097,4.27899,2337.0,2336.7,0.1157543]
[1727945568587,3.0,2337.1,2336.7,0.1157543]
[1727945568588,7.27883,2337.1,2336.7,0.1157543]
[1727945568834,4.31983631,2337.1,2336.8,0.7591]
[1727945568983,4.27864,2337.2,2336.8,0.7591]
[1727945569401,0.855652,2337.3,2336.8,0.7591]
[1727945569600,4.27891,2337.1,2336.8,0.7591]
[1727945569922,4.27901,2337.0,2336.8,0.7591]
[1727945570283,4.27917,2336.9,2336.8,0.7591]
[1727945570684,4.27884,2337.1,2336.8,0.7591]
[1727945570879,4.27882,2337.1,2336.8,0.7591]
[1727945572224,4.27914,2337.0,2336.8,0.7591]
[1727945572408,4.27887,2337.1,2336.8,0.7591]
[1727945572594,4.27906,2337.0,2336.8,0.7591]
[1727945572922,4.27887,2337.1,2336.8,0.7591]
[1727945573336,4.27906,2337.0,2336.8,0.7591]
[1727945573540,4.27917,2336.9,2336.8,0.7591]
[1727945575222,4.27917,2336.9,2336.7,0.1157543]
[1727945576518,4.27906,2337.0,2336.7,0.1157543]
[1727945577029,4.27917,2336.9,2336.7,0.1157543]
[1727945577232,0.855823,2336.9,2336.7,0.1157543]
[1727945577415,4.27906,2337.0,2336.7,0.1157543]
[1727945578297,8.55816,2337.0,2336.7,0.1157543]
[1727945578697,4.27903,2337.0,2336.7,0.1157543]
[1727945578979,9.34239109,2337.3,2336.7,0.1157543]
[1727945578980,4.2793,2336.9,2336.7,0.1157543]
[1727945579207,0.42793,2336.8,2336.7,0.1157543]
[1727945579528,4.27906,2337.0,2336.7,0.1157543]
[1727945579689,8.55822,2337.0,2336.7,0.1157543]
[1727945579890,8.55813,2337.0,2336.7,0.1157543]
[1727945580111,5.134843,2337.0,2336.8,0.7584]
[1727945580387,5.51257611,2337.4,2336.8,0.7584]
[1727945580732,5.51254611,2337.4,2337.0,4.27895]
[1727945581031,4.27802,2337.6,2337.0,4.27895]
[1727945581032,4.2779,2337.6,2337.2,0.822]
[1727945581234,4.27807,2337.5,2337.2,0.822]
[1727945581533,4.27871,2337.2,2336.9,0.822]
[1727945581833,4.27842,2337.4,2336.9,5.10116]
[1727945581999,9.34194109,2337.6,2336.9,0.822]
[1727945582200,4.27864,2337.2,2336.9,0.822]
[1727945582409,8.55742,2337.2,2336.9,0.822]
[1727945582609,4.27882,2337.1,2336.9,0.822]
[1727945583215,4.27864,2337.2,2336.9,0.822]
[1727945584549,8.55739,2337.2,2336.9,0.822]
[1727945584701,4.27899,2337.0,2336.7,0.9132543]
[1727945584897,5.134569,2337.1,2336.7,0.1157543]
[1727945584898,4.27935,2336.8,2336.7,0.1157543]
[1727945585096,0.855859,2336.8,2336.7,0.1157543]
[1727945585330,8.55852,2336.9,2336.7,0.1157543]
[1727945585516,4.27935,2336.8,2336.7,0.1157543]
[1727945585720,4.27907,2337.0,2336.7,0.1157543]
[1727945586023,0.855798,2336.9,2336.7,4.3952743]
[1727945586223,4.27889,2337.1,2336.7,4.3952743]
[1727945586432,4.27855,2337.3,2336.9,4.27908]
[1727945586610,4.27926,2336.9,2336.7,0.1157543]
[1727945587304,8.55852,2336.9,2336.7,0.1157543]
[1727945587504,0.855852,2336.8,2336.7,0.1157543]
[1727945588501,5.135202,2336.8,2336.7,0.1157543]
[1727945588733,5.910802,2336.8,2336.7,0.1157543]
[1727945589043,5.910802,2336.8,2335.9,0.7671]
[1727945589044,4.28082,2336.0,2335.9,0.7671]
[1727945589242,4.28146,2335.7,2335.5,0.7671]
[1727945589401,4.28146,2335.7,2334.7,1.77944982]
[1727945589402,4.28155,2335.6,2335.1,5.04948]
[1727945590112,0.428146,2335.7,2335.3,4.28194]
[1727945590318,0.428146,2335.7,2335.4,0.7671]
[1727945590319,4.28157,2335.6,2335.4,0.7671]
[1727945590743,0.428146,2335.7,2335.4,0.7671]
[1727945590959,5.11313,2336.2,2335.4,0.7671]
[1727945590960,4.28077,2336.1,2335.7,4.28136]
[1727945591247,4.28077,2336.1,2335.4,0.7671]
[1727945591248,4.28111,2335.9,2335.4,0.7671]
[1727945591458,4.28204,2335.4,2334.9,4.28281]
[1727945591603,0.8325,2335.7,2334.8,0.7671]
[1727945591604,4.28235,2335.2,2334.8,0.7671]
[1727945591799,4.28233,2335.2,2334.8,0.7671]
[1727945592146,5.08265652,2335.6,2335.0,0.7671]
[1727945592147,4.28164,2335.6,2335.0,0.7671]
[1727945592313,4.28164,2335.6,2335.1,4.28236]
[1727945592513,4.28126,2335.8,2335.1,4.28236]
[1727945592852,4.28149,2335.7,2335.2,4.28224]
[1727945593003,4.28133,2335.8,2335.4,0.8153]
[1727945593199,4.28164,2335.6,2335.4,0.8153]
[1727945593436,0.856301,2335.5,2335.4,0.8153]
[1727945593707,4.28173,2335.5,2335.4,0.8153]
[1727945593900,4.28113,2335.9,2335.4,5.09719]
[1727945594100,4.28121,2335.8,2335.4,0.8153]
[1727945594302,4.7521387,2335.8,2335.4,0.8153]
[1727945594529,0.4709287,2335.8,2335.4,0.8153]
[1727945594732,4.28173,2335.5,2335.1,0.8224]
[1727945594934,4.28148,2335.7,2335.2,4.28215]
[1727945595140,4.28148,2335.7,2335.3,4.28207]
[1727945595339,4.28148,2335.7,2335.2,4.28215]
[1727945595540,5.137739,2335.7,2335.2,4.28215]
[1727945595746,4.28156,2335.6,2335.2,4.28227]
[1727945596803,5.137649,2335.7,2335.2,4.28216]
[1727945597006,4.28184,2335.5,2335.1,0.8224]
[1727945597306,0.9418989,2335.6,2335.2,4.28228]
[1727945597514,8.56299,2335.7,2335.2,4.28228]
[1727945597720,8.56299,2335.7,2335.1,5.10486]
[1727945597721,4.28157,2335.6,2335.1,5.10486]
[1727945597961,4.28195,2335.4,2335.1,0.8224]
[1727945598144,4.28213,2335.3,2335.1,0.8224]
[1727945598479,8.68265816,2336.2,2335.1,0.8224]
[1727945598480,4.27894,2337.1,2336.6,0.7711]
[1727945598619,4.2787,2337.2,2336.7,4.27952]
[1727945598822,0.7873,2337.3,2336.6,0.7711]
[1727945598823,4.27914,2337.0,2336.6,0.7711]
[1727945599056,4.27953,2336.7,2336.1,4.28052]
[1727945599261,4.27953,2336.7,2336.1,0.785]
[1727945599262,4.28019,2336.4,2336.1,0.785]
[1727945599567,0.427953,2336.6,2335.6,0.785]
[1727945599568,4.28079,2336.1,2335.6,0.785]
[1727945599783,4.2804,2336.3,2335.8,4.28117]
[1727945599935,3.0,2336.2,2335.6,0.785]
[1727945600257,0.3,2336.1,2335.6,5.06644]
[1727945600469,4.28046,2336.2,2335.6,5.06644]
[1727945600821,4.28046,2336.2,2335.3,5.06707]
[1727945600822,4.2812,2335.8,2335.3,5.06707]
[1727945601052,4.2807,2336.1,2335.3,0.785]
[1727945601380,4.28065,2336.1,2335.3,0.785]
[1727945601663,4.28083,2336.0,2335.4,8.56349]
[1727945601818,4.28105,2335.9,2335.4,4.28173]
[1727945602018,4.28083,2336.0,2335.4,9.49841]
[1727945602220,4.28104,2335.9,2335.4,4.28173]
[1727945602417,4.28104,2335.9,2335.4,4.28191]
[1727945602668,4.28083,2336.0,2335.5,4.28171]
[1727945602881,5.08265652,2336.5,2335.4,0.506691]
[1727945603040,4.28084,2336.0,2335.5,4.28171]
[1727945603550,8.56147,2336.1,2335.5,4.28171]
[1727945603734,4.28098,2336.0,2335.6,0.8193]
[1727945604065,4.28095,2336.0,2335.6,0.8193]
[1727945604223,8.5619,2336.0,2335.6,0.8193]
[1727945604428,4.28095,2336.0,2335.6,0.8193]
[1727945604660,4.28102,2335.9,2335.6,0.8193]
[1727945605238,4.28095,2336.0,2335.6,0.8193]
[1727945605439,8.5619,2336.0,2335.6,0.8193]
[1727945605638,4.281,2335.9,2335.6,0.8193]
[1727945606060,4.2813,2335.8,2335.6,0.8193]
[1727945606270,4.28137,2335.7,2335.6,0.8193]
[1727945606574,4.28137,2335.7,2335.3,4.28207]
[1727945606873,4.28156,2335.6,2335.2,5.10942]
[1727945607274,4.28137,2335.7,2335.2,5.10942]
[1727945607480,4.28137,2335.7,2335.2,5.10948]
[1727945607629,4.28137,2335.7,2335.3,4.28209]
[1727945607974,4.28172,2335.6,2335.2,0.8273]
[1727945608167,4.28172,2335.6,2335.2,5.10957]
[1727945608468,4.28131,2335.8,2335.2,5.10957]
[1727945608469,4.2814,2335.7,2335.2,6.048771]
[1727945608727,4.2814,2335.7,2335.3,4.28208]
[1727945609239,4.28131,2335.8,2335.5,0.7732]
[1727945609432,9.36256652,2336.5,2335.7,4.28128]
[1727945609433,4.28053,2336.2,2335.7,4.28128]
[1727945609635,4.28003,2336.5,2335.6,1.3232]
[1727945609636,4.27996,2336.5,2336.0,4.28067]
[1727945609934,4.2801,2336.4,2336.1,0.7681]
[1727945610368,4.27936,2336.8,2336.1,0.7681]
[1727945610369,4.27991,2336.5,2336.1,5.04865]
[1727945610539,4.27946,2336.8,2336.2,4.28044]
[1727945610734,4.27926,2336.9,2336.4,4.27991]
[1727945610931,4.27926,2336.9,2336.5,0.795]
[1727945611538,4.27906,2337.0,2336.5,5.0748]
[1727945611740,4.2786,2337.3,2336.6,4.27972]
[1727945611938,4.27827,2337.4,2336.8,4.27921]
[1727945612137,4.27794,2337.6,2337.1,4.27868]
[1727945612374,0.7631,2337.7,2336.9,0.8163]
[1727945612536,8.55738,2337.2,2336.6,9.92546]
[1727945612732,4.27863,2337.2,2336.7,4.27951]
[1727945612977,4.27845,2337.3,2336.8,4.27925]
[1727945613134,4.27845,2337.3,2336.6,0.8163]
[1727945613332,5.84575652,2337.7,2336.6,0.8163]
[1727945613333,4.27882,2337.1,2336.6,0.8163]
[1727945613548,4.27877,2337.2,2336.6,0.8163]
[1727945613836,4.27877,2337.2,2336.7,4.27953]
[1727945614266,4.2781,2337.5,2337.1,4.2788]
[1727945614466,4.27819,2337.5,2337.1,4.2788]
[1727945614666,2.07540965,2337.7,2336.9,4.27916]
[1727945614667,4.27856,2337.3,2336.9,4.27916]
[1727945614986,4.27856,2337.3,2336.7,4.82935]
[1727945615282,8.55713,2337.3,2336.8,4.27935]
[1727945615486,4.27856,2337.3,2336.9,4.27916]
[1727945615636,4.27863,2337.2,2336.8,0.9925]
[1727945616072,4.27856,2337.3,2336.6,0.8163]
[1727945616073,4.27941,2336.8,2336.6,0.8163]
[1727945616314,4.27931,2336.9,2336.4,4.27998]
[1727945616588,4.27937,2336.8,2336.4,4.28006]
[1727945616879,4.27984,2336.6,2336.3,0.7992]
[1727945617554,0.427928,2336.8,2336.3,0.7992]
[1727945617857,4.2798,2336.6,2336.3,0.7992]
[1727945618198,4.27974,2336.6,2336.3,0.7992]
[1727945620302,4.27991,2336.5,2336.3,0.7992]
[1727945620666,4.27994,2336.5,2336.3,0.7992]
[1727945620968,4.28008,2336.4,2336.3,0.7992]
[1727945621172,4.27989,2336.6,2336.3,0.7992]
[1727945621173,4.27992,2336.5,2336.3,0.7992]
[1727945621380,4.27989,2336.6,2336.3,0.7992]
[1727945621591,4.28008,2336.4,2336.3,0.7992]
[1727945621902,4.28008,2336.4,2336.0,0.7813]
[1727945622394,4.28029,2336.3,2336.0,0.7813]